[Event "NOR-ch Youth 2019"]
[Site "Skien"]
[Date "2019.11.10"]
[Round "7.21"]
[White "Furulund, Eirik Eikeland"]
[Black "Ostensen, Nicolai Maxime"]
[Result "1/2-1/2"]
[ECO "B08"]
[WhiteElo "1125"]
[BlackElo "1691"]
[Annotator "NA"]
[PlyCount "132"]
[EventDate "2019.11.08"]
[EventType "swiss"]
[EventCountry "NOR"]
[SourceTitle "playchess.com"]
[Source "ChessBase"]
[SourceQuality "1"]
[TimeControl "5400+30"]

1. e4 {[%emt 0:00:00]} d6 {[%emt 0:00:00]} 2. d4 {[%emt 0:00:00]} Nf6 {[%emt 0:00:00]} 3. Nc3 {[%emt 0:00:07]} g6 {[%emt 0:00:00]} 4. Bc4 {[%emt 0:00:18]} Bg7 {[%emt 0:00:00]} 5. Nf3 {[%emt 0:00:35]} O-O {[%emt 0:00:08]} 6. O-O {[%emt 0:00:23]} Bg4 {[%emt 0:00:02]} 7. h3 {[%emt 0:00:18]} Bxf3 {[%emt 0:00:05]} 8. Qxf3 {[%emt 0:00:18]} Nbd7 {[%emt 0:00:31]} 9. Be3 {[%emt 0:00:45]} c6 {[%emt 0:00:32]} 10. Rad1 {[%emt 0:02:12]} b5 {[%emt 0:00:25]} 11. Be2 {[%emt 0:00:41]} Re8 {[%emt 0:03:17]} 12. Bf4 {[%emt 0:03:21]} b4 {[%emt 0:02:14]} 13. Nb1 {[%emt 0:00:47]} Nh5 {[%emt 0:02:20]} 14. Bc4 {[%emt 0:01:15]} Nb6 {[%emt 0:03:46]} 15. Bb3 {[%emt 0:00:32]} Nxf4 {[%emt 0:00:18]} 16. Qxf4 {[%emt 0:00:17]} e6 {[%emt 0:00:34]} 17. c3 {[%emt 0:03:53]} bxc3 {[%emt 0:01:32]} 18. Nxc3 {[%emt 0:00:43]} d5 {[%emt 0:00:56]} 19. e5 {[%emt 0:00:27]} Rc8 {[%emt 0:00:42]} 20. Na4 {[%emt 0:02:08]} Nxa4 {[%emt 0:00:54]} 21. Bxa4 {[%emt 0:00:20]} Qa5 {[%emt 0:00:08]} 22. Bb3 {[%emt 0:00:27]} c5 {[%emt 0:01:31]} 23. dxc5 {[%emt 0:01:01]} Rxc5 {[%emt 0:00:45]} 24. Qa4 {[%emt 0:01:38]} Qxa4 {[%emt 0:00:12]} 25. Bxa4 {[%emt 0:00:07]} Rec8 {[%emt 0:00:04]} 26. f4 {[%emt 0:00:31]} Kf8 {[%emt 0:00:51]} 27. Bb3 {[%emt 0:00:28]} Ke7 {[%emt 0:00:08]} 28. Kf2 {[%emt 0:00:27]} a5 {[%emt 0:01:17]} 29. a3 {[%emt 0:02:39]} Rb8 {[%emt 0:01:17]} 30. Rd3 {[%emt 0:01:25]} Rcb5 {[%emt 0:00:33]} 31. Bd1 {[%emt 0:00:28]} Rxb2+ {[%emt 0:00:09]} 32. Ke3 {[%emt 0:00:57]} Rxg2 {[%emt 0:00:52]} 33. Rf2 {[%emt 0:00:50]} Rxf2 {[%emt 0:00:11]} 34. Kxf2 {[%emt 0:00:08]} Rb2+ {[%emt 0:00:17]} 35. Kg3 {[%emt 0:00:37]} h6 {[%emt 0:01:30]} 36. Bf3 {[%emt 0:01:00]} g5 {[%emt 0:00:08]} 37. fxg5 {[%emt 0:00:44]} hxg5 {[%emt 0:00:27]} 38. Re3 {[%emt 0:00:35]} d4 {[%emt 0:00:34]} 39. Rd3 {[%emt 0:02:03]} Bxe5+ {[%emt 0:00:09]} 40. Kg4 {[%emt 0:00:51]} f6 {[%emt 0:00:35]} 41. h4 {[%emt 0:02:09]} gxh4 {[%emt 0:00:10]} 42. Kxh4 {[%emt 0:00:09]} Kd6 {[%emt 0:00:01]} 43. Kg4 {[%emt 0:01:39]} Rc2 {[%emt 0:00:19]} 44. Rb3 {[%emt 0:01:16]} Rc3 {[%emt 0:00:08]} 45. Rb6+ {[%emt 0:00:58]} Kd7 {[%emt 0:00:27]} 46. Rb7+ {[%emt 0:00:49]} Bc7 {[%emt 0:00:21]} 47. a4 {[%emt 0:00:38]} d3 {[%emt 0:00:11]} 48. Rb1 {[%emt 0:00:47]} Rc4+ {[%emt 0:00:21]} 49. Kh3 {[%emt 0:00:33]} Rxa4 {[%emt 0:00:23]} 50. Bd1 {[%emt 0:00:55]} Ra3 {[%emt 0:00:14]} 51. Rb3 {[%emt 0:00:45]} Rxb3 {[%emt 0:00:15]} 52. Bxb3 {[%emt 0:00:06]} Kd6 {[%emt 0:00:00]} 53. Kg3 {[%emt 0:00:26]} Kc5+ {[%emt 0:00:13]} 54. Kf3 {[%emt 0:00:12]} Kd4 {[%emt 0:00:17]} 55. Bd1 {[%emt 0:00:25]} Kc3 {[%emt 0:00:04]} 56. Ke3 {[%emt 0:00:20]} Bb6+ {[%emt 0:00:12]} 57. Kf3 {[%emt 0:00:21]} Kd2 {[%emt 0:00:17]} 58. Ba4 {[%emt 0:00:19]} Kc1 {[%emt 0:00:13]} 59. Bb3 {[%emt 0:00:16]} d2 {[%emt 0:00:06]} 60. Ke2 {[%emt 0:00:08]} f5 {[%emt 0:00:09]} 61. Ba4 {[%emt 0:00:25]} e5 {[%emt 0:00:48]} 62. Bb3 {[%emt 0:00:41]} e4 {[%emt 0:00:04]} 63. Ba4 {[%emt 0:00:06]} f4 {[%emt 0:00:03]} 64. Bb3 {[%emt 0:00:15]} f3+ {[%emt 0:00:05]} 65. Kf1 {[%emt 0:00:11]} d1=Q+ {[%emt 0:00:06]} 66. Bxd1 {[%emt 0:00:11]} Kxd1 {[%emt 0:00:03] Ke1+} 1/2-1/2

[Event "NOR-ch Youth 2019"]
[Site "Skien"]
[Date "2019.11.10"]
[Round "7.22"]
[White "Haug, Havard"]
[Black "Ji, Jiahao Eric"]
[Result "1/2-1/2"]
[ECO "C00"]
[WhiteElo "1544"]
[BlackElo "1667"]
[Annotator "NA"]
[PlyCount "204"]
[EventDate "2019.11.08"]
[EventType "swiss"]
[EventCountry "NOR"]
[SourceTitle "playchess.com"]
[Source "ChessBase"]
[SourceQuality "1"]
[TimeControl "5400+30"]

1. e4 {[%emt 0:00:00]} e6 {[%emt 0:00:00]} 2. d3 {[%emt 0:00:00]} d5 {[%emt 0:02:18]} 3. Nd2 {[%emt 0:02:39]} g6 {[%emt 0:03:46]} 4. g3 {[%emt 0:02:06]} Bg7 {[%emt 0:00:00]} 5. Bg2 {[%emt 0:01:25]} Nf6 {[%emt 0:00:00]} 6. f4 {[%emt 0:02:34]} c6 {[%emt 0:05:01]} 7. Ngf3 {[%emt 0:02:22]} dxe4 {[%emt 0:01:02]} 8. Nxe4 {[%emt 0:01:10]} Nxe4 {[%emt 0:02:47]} 9. dxe4 {[%emt 0:05:00]} Qxd1+ {[%emt 0:02:18]} 10. Kxd1 {[%emt 0:01:30]} Ke7 {[%emt 0:02:43]} 11. c3 {[%emt 0:01:40]} Rd8+ {[%emt 0:00:20]} 12. Ke2 {[%emt 0:00:32]} Nd7 {[%emt 0:01:36]} 13. Be3 {[%emt 0:02:40]} Nb6 {[%emt 0:17:15]} 14. Bxb6 {[%emt 0:01:39]} axb6 {[%emt 0:00:17]} 15. a3 {[%emt 0:00:47]} Bd7 {[%emt 0:00:49]} 16. Rad1 {[%emt 0:00:59]} c5 {[%emt 0:00:35]} 17. h4 {[%emt 0:04:42]} h5 {[%emt 0:01:04]} 18. e5 {[%emt 0:02:33]} Bc6 {[%emt 0:03:07]} 19. Rxd8 {[%emt 0:01:53]} Rxd8 {[%emt 0:00:10]} 20. Rd1 {[%emt 0:00:11]} Bd5 {[%emt 0:03:24]} 21. Kf2 {[%emt 0:05:00]} Bxf3 {[%emt 0:03:43]} 22. Rxd8 {[%emt 0:00:40]} Bxg2 {[%emt 0:03:48]} 23. Rc8 {[%emt 0:04:08]} Bd5 {[%emt 0:00:49]} 24. Rc7+ {[%emt 0:00:14]} Ke8 {[%emt 0:00:07]} 25. Rc8+ {[%emt 0:00:55]} Ke7 {[%emt 0:00:02]} 26. c4 {[%emt 0:02:36]} Bc6 {[%emt 0:01:11]} 27. Rc7+ {[%emt 0:01:46]} Ke8 {[%emt 0:00:13]} 28. b4 {[%emt 0:00:45]} cxb4 {[%emt 0:01:17]} 29. axb4 {[%emt 0:01:41]} Bf8 {[%emt 0:00:22]} 30. Rc8+ {[%emt 0:00:24]} Ke7 {[%emt 0:01:10]} 31. c5 {[%emt 0:02:01]} b5 {[%emt 0:00:54]} 32. Ke3 {[%emt 0:03:52]} Bg7 {[%emt 0:00:00]} 33. Kd4 {[%emt 0:00:40]} Kd7 {[%emt 0:03:52]} 34. Rg8 {[%emt 0:02:48]} Ke7 {[%emt 0:00:26]} 35. Rc8 {[%emt 0:00:44]} Kd7 {[%emt 0:00:06]} 36. Rb8 {[%emt 0:00:13]} Ke7 {[%emt 0:00:36]} 37. Ra8 {[%emt 0:03:37]} Kd7 {[%emt 0:00:12]} 38. Ke3 {[%emt 0:01:39]} Ke7 {[%emt 0:01:28]} 39. Kf2 {[%emt 0:01:54]} Bh6 {[%emt 0:01:53]} 40. Ke3 {[%emt 0:01:05]} Bg7 {[%emt 0:05:30]} 41. Rc8 {[%emt 0:03:29]} Kd7 {[%emt 0:00:29]} 42. Rb8 {[%emt 0:00:28]} Ke7 {[%emt 0:00:07]} 43. Kd4 {[%emt 0:03:37]} Kd7 {[%emt 0:00:02]} 44. Ra8 {[%emt 0:02:33]} Ke7 {[%emt 0:01:51]} 45. Ra1 {[%emt 0:00:58]} f6 {[%emt 0:04:10]} 46. Rg1 {[%emt 0:03:05]} f5 {[%emt 0:01:18]} 47. Ra1 {[%emt 0:03:45]} Kf7 {[%emt 0:00:12]} 48. Ra8 {[%emt 0:00:18]} Ke7 {[%emt 0:00:05]} 49. Rc8 {[%emt 0:00:17]} Kf7 {[%emt 0:00:09]} 50. Rc7+ {[%emt 0:00:43]} Kf8 {[%emt 0:00:18]} 51. Kd3 {[%emt 0:00:22]} Bh6 {[%emt 0:01:07]} 52. Rc8+ {[%emt 0:01:09]} Kf7 {[%emt 0:00:31]} 53. Rd8 {[%emt 0:01:45]} Ke7 {[%emt 0:00:41]} 54. Rc8 {[%emt 0:00:11]} Kf7 {[%emt 0:00:08]} 55. Ke3 {[%emt 0:01:31]} Ke7 {[%emt 0:00:45]} 56. Rh8 {[%emt 0:00:28]} Bg7 {[%emt 0:00:08]} 57. Rc8 {[%emt 0:00:20]} Bh6 {[%emt 0:00:21]} 58. Rh8 {[%emt 0:00:32]} Bg7 {[%emt 0:00:02]} 59. Rg8 {[%emt 0:00:26]} Kf7 {[%emt 0:00:01]} 60. Rb8 {[%emt 0:01:53]} Ke7 {[%emt 0:00:22]} 61. Rc8 {[%emt 0:00:37]} Bh6 {[%emt 0:00:24]} 62. Ra8 {[%emt 0:02:46]} Bg7 {[%emt 0:00:38]} 63. Ra1 {[%emt 0:00:48]} Kf7 {[%emt 0:00:24]} 64. Ra8 {[%emt 0:00:24]} Ke7 {[%emt 0:00:08]} 65. Rc8 {[%emt 0:00:04]} Kf7 {[%emt 0:00:51]} 66. Rc7+ {[%emt 0:00:07]} Kf8 {[%emt 0:00:06]} 67. Kd3 {[%emt 0:01:40]} Bh6 {[%emt 0:00:11]} 68. Rc8+ {[%emt 0:04:21]} Kf7 {[%emt 0:00:10]} 69. Rd8 {[%emt 0:00:07]} Ke7 {[%emt 0:00:15]} 70. Rh8 {[%emt 0:01:21]} Bg7 {[%emt 0:00:11]} 71. Ra8 {[%emt 0:01:25]} Bh6 {[%emt 0:00:19]} 72. Ra1 {[%emt 0:00:20]} Bg7 {[%emt 0:00:06]} 73. Kc3 {[%emt 0:00:08]} Kf7 {[%emt 0:00:48]} 74. Rd1 {[%emt 0:00:19]} Ke7 {[%emt 0:00:10]} 75. Rd2 {[%emt 0:00:15]} Kf7 {[%emt 0:00:16]} 76. Rd6 {[%emt 0:00:11]} Ke7 {[%emt 0:00:08]} 77. Rd1 {[%emt 0:00:51]} Kf7 {[%emt 0:00:09]} 78. Rd8 {[%emt 0:01:01]} Ke7 {[%emt 0:00:12]} 79. Rc8 {[%emt 0:00:52]} Kf7 {[%emt 0:00:25]} 80. Rc7+ {[%emt 0:00:12]} Kf8 {[%emt 0:00:11]} 81. Rc8+ {[%emt 0:01:54]} Kf7 {[%emt 0:00:13]} 82. Rc7+ {[%emt 0:00:13]} Kf8 {[%emt 0:00:10]} 83. Kd2 {[%emt 0:00:08]} Bh6 {[%emt 0:00:06]} 84. Ke1 {[%emt 0:00:07]} Bg7 {[%emt 0:00:13]} 85. Kf2 {[%emt 0:00:09]} Bh6 {[%emt 0:00:12]} 86. Rc8+ {[%emt 0:01:02]} Kf7 {[%emt 0:01:37]} 87. Rd8 {[%emt 0:00:34]} Ke7 {[%emt 0:00:23]} 88. Rh8 {[%emt 0:01:17]} Bg7 {[%emt 0:00:05]} 89. Rc8 {[%emt 0:01:06]} Kf7 {[%emt 0:00:11]} 90. Rb8 {[%emt 0:00:04]} Ke7 {[%emt 0:00:06]} 91. Ke3 {[%emt 0:00:15]} Kf7 {[%emt 0:00:10]} 92. Kd4 {[%emt 0:00:38]} Ke7 {[%emt 0:00:09]} 93. Rc8 {[%emt 0:00:21]} Kf7 {[%emt 0:00:06]} 94. Rc7+ {[%emt 0:00:59]} Kf8 {[%emt 0:00:09]} 95. Ke3 {[%emt 0:00:12]} Bh6 {[%emt 0:00:06]} 96. Ke2 {[%emt 0:00:03]} Bg7 {[%emt 0:00:07]} 97. Kd2 {[%emt 0:00:16]} Bh6 {[%emt 0:00:07]} 98. Rc8+ {[%emt 0:00:14]} Kf7 {[%emt 0:00:09]} 99. Kc2 {[%emt 0:00:29]} Bg7 {[%emt 0:00:11]} 100. Kb3 {[%emt 0:00:20]} Ke7 {[%emt 0:00:09]} 101. Rc7+ {[%emt 0:00:21]} Kf8 {[%emt 0:00:07]} 102. Kc2 {[%emt 0:00:55]} Bh6 {[%emt 0:00:14]} 1/2-1/2

[Event "NOR-ch Youth 2019"]
[Site "Skien"]
[Date "2019.11.10"]
[Round "7.23"]
[White "Myagmarsuren, Evsuld"]
[Black "Anfindsen, Andreas Gautestad"]
[Result "1-0"]
[ECO "B56"]
[WhiteElo "1471"]
[BlackElo "1121"]
[Annotator "NA"]
[PlyCount "69"]
[EventDate "2019.11.08"]
[EventType "swiss"]
[EventCountry "NOR"]
[SourceTitle "playchess.com"]
[Source "ChessBase"]
[SourceQuality "1"]
[TimeControl "5400+30"]

1. e4 {[%emt 0:00:00]} c5 {[%emt 0:00:00]} 2. Nf3 {[%emt 0:00:11]} Nc6 {[%emt 0:00:00]} 3. d4 {[%emt 0:00:51]} cxd4 {[%emt 0:00:00]} 4. Nxd4 {[%emt 0:00:36]} Nf6 {[%emt 0:00:01]} 5. Nc3 {[%emt 0:00:19]} d6 {[%emt 0:00:08]} 6. Be3 {[%emt 0:01:03]} e5 {[%emt 0:00:15]} 7. Nb3 {[%emt 0:01:20]} Be7 {[%emt 0:00:13]} 8. f3 {[%emt 0:00:40]} O-O {[%emt 0:00:10]} 9. Qd2 {[%emt 0:00:05]} a5 {[%emt 0:00:36]} 10. Bb5 {[%emt 0:07:24]} Na7 {[%emt 0:00:12]} 11. Bc4 {[%emt 0:03:48]} Be6 {[%emt 0:02:14]} 12. Bxe6 {[%emt 0:01:26]} fxe6 {[%emt 0:00:09]} 13. O-O-O {[%emt 0:00:08]} Qd7 {[%emt 0:16:18]} 14. Nc5 {[%emt 0:08:29]} Qc8 {[%emt 0:05:44]} 15. N5a4 {[%emt 0:02:18]} Nd7 {[%emt 0:06:41]} 16. h4 {[%emt 0:04:27]} b5 {[%emt 0:01:28]} 17. Nb6 {[%emt 0:01:37]} Nxb6 {[%emt 0:00:12]} 18. Bxb6 {[%emt 0:00:07]} b4 {[%emt 0:01:01]} 19. Nb1 {[%emt 0:01:28]} Qc6 {[%emt 0:01:01]} 20. Be3 {[%emt 0:02:48]} Qa4 {[%emt 0:06:31]} 21. h5 {[%emt 0:09:10]} Qxa2 {[%emt 0:02:30]} 22. g4 {[%emt 0:07:55]} b3 {[%emt 0:04:19]} 23. c3 {[%emt 0:01:11]} Rxf3 {[%emt 0:01:54]} 24. g5 {[%emt 0:01:04]} Nb5 {[%emt 0:05:28]} 25. g6 {[%emt 0:01:00]} h6 {[%emt 0:00:19]} 26. Bxh6 {[%emt 0:01:52]} Rc8 {[%emt 0:20:11]} 27. Be3 {[%emt 0:02:57]} Rg3 {[%emt 0:14:18]} 28. h6 {[%emt 0:09:34]} Qa1 {[%emt 0:07:02]} 29. hxg7 {[%emt 0:01:03]} Kxg7 {[%emt 0:00:24]} 30. Rh7+ {[%emt 0:02:06]} Kxg6 {[%emt 0:00:57]} 31. Qh2 {[%emt 0:01:48]} Rxc3+ {[%emt 0:03:16]} 32. bxc3 {[%emt 0:00:25]} b2+ {[%emt 0:00:19]} 33. Kd2 {[%emt 0:03:16]} Bg5 {[%emt 0:01:19]} 34. Qh5+ {[%emt 0:00:07]} Kf6 {[%emt 0:00:17]} 35. Rf7# {[%emt 0:00:09]} 1-0

[Event "NOR-ch Youth 2019"]
[Site "Skien"]
[Date "2019.11.10"]
[Round "7.24"]
[White "Shehzad, Alina"]
[Black "Ji, Jiabao Eivind"]
[Result "1/2-1/2"]
[ECO "B33"]
[WhiteElo "1174"]
[BlackElo "1373"]
[Annotator "NA"]
[PlyCount "59"]
[EventDate "2019.11.08"]
[EventType "swiss"]
[EventCountry "NOR"]
[SourceTitle "playchess.com"]
[Source "ChessBase"]
[SourceQuality "1"]
[TimeControl "5400+30"]

1. e4 {[%emt 0:00:00]} c5 {[%emt 0:00:00]} 2. Nf3 {[%emt 0:00:00]} Nc6 {[%emt 0:00:00]} 3. d4 {[%emt 0:00:07]} cxd4 {[%emt 0:00:03]} 4. Nxd4 {[%emt 0:00:24]} Nf6 {[%emt 0:00:32]} 5. Nc3 {[%emt 0:00:20]} e5 {[%emt 0:00:15]} 6. Nb3 {[%emt 0:01:21]} Bb4 {[%emt 0:00:53]} 7. f3 {[%emt 0:02:30]} h6 {[%emt 0:00:41]} 8. Be3 {[%emt 0:00:30]} O-O {[%emt 0:00:24]} 9. Bc4 {[%emt 0:01:22]} a6 {[%emt 0:01:09]} 10. a3 {[%emt 0:01:07]} Ba5 {[%emt 0:00:22]} 11. Nc5 {[%emt 0:03:18]} d6 {[%emt 0:00:33]} 12. Nd3 {[%emt 0:02:03]} b5 {[%emt 0:00:18]} 13. Bb3 {[%emt 0:01:48]} Bb7 {[%emt 0:00:17]} 14. O-O {[%emt 0:01:14]} Bb6 {[%emt 0:03:24]} 15. Qd2 {[%emt 0:01:24]} Rc8 {[%emt 0:02:33]} 16. Kh1 {[%emt 0:00:44]} Bxe3 {[%emt 0:00:24]} 17. Qxe3 {[%emt 0:00:44]} Nd4 {[%emt 0:00:28]} 18. Ne2 {[%emt 0:02:02]} Nxe2 {[%emt 0:00:53]} 19. Qxe2 {[%emt 0:01:03]} Re8 {[%emt 0:00:40]} 20. Qf2 {[%emt 0:02:33]} Qd7 {[%emt 0:01:11]} 21. Rad1 {[%emt 0:01:24]} Qc7 {[%emt 0:01:15]} 22. Qg3 {[%emt 0:02:29]} a5 {[%emt 0:04:51]} 23. c3 {[%emt 0:07:15]} a4 {[%emt 0:01:26]} 24. Ba2 {[%emt 0:00:23]} Qe7 {[%emt 0:02:44]} 25. Nf2 {[%emt 0:01:33]} Nh5 {[%emt 0:00:41]} 26. Qh3 {[%emt 0:02:04]} Nf4 {[%emt 0:00:35]} 27. Qg3 {[%emt 0:01:44]} Kh7 {[%emt 0:03:42]} 28. Nh3 {[%emt 0:05:39]} Ng6 {[%emt 0:03:09]} 29. Rfe1 {[%emt 0:07:58]} Nf8 {[%emt 0:02:28]} 30. Qg4 {[%emt 0:08:43]} 1/2-1/2